[Event "Titled Tuesday Blitz May 30 Early 2023"]
[White "Pranav, V"]
[Black "Hayrapetyan, Hovik"]
[WhiteFideId "25060783"]
[BlackFideId "13302639"]
[WhiteElo "2515"]
[BlackElo "2348"]
[Result "0-1"]
[Round "10"]
[TimeControl "180+2"]
[Date "2023.05.30"]
[WhiteClock "0:00:06"]
[BlackClock "0:00:25"]

1. e4 {[%clk 0:03:00]}  c5 {[%clk 0:02:59]} 2. Nf3 {[%clk 0:03:01]}  d6 {[%clk 0:03:00]} 3. d4 {[%clk 0:03:00]}  cxd4 {[%clk 0:03:00]} 4. Nxd4 {[%clk 0:03:01]}  Nf6 {[%clk 0:03:01]} 5. Nc3 {[%clk 0:03:02]}  a6 {[%clk 0:03:02]} 6. Bg5 {[%clk 0:02:59]}  Nbd7 {[%clk 0:03:02]} 7. Bc4 {[%clk 0:02:52]}  Qb6 {[%clk 0:03:02]} 8. O-O {[%clk 0:02:51]}  Qc5 {[%clk 0:02:56]} 9. Bd5 {[%clk 0:02:50]}  e6 {[%clk 0:02:55]} 10. Re1 {[%clk 0:02:44]}  Ne5 {[%clk 0:02:40]} 11. Bb3 {[%clk 0:02:39]}  Be7 {[%clk 0:02:36]} 12. h3 {[%clk 0:02:29]}  O-O {[%clk 0:02:27]} 13. Be3 {[%clk 0:02:10]}  Qc7 {[%clk 0:02:26]} 14. f4 {[%clk 0:02:09]}  Nc4 {[%clk 0:02:16]} 15. Bxc4 {[%clk 0:02:09]}  Qxc4 {[%clk 0:02:17]} 16. Qf3 {[%clk 0:02:09]}  Qc7 {[%clk 0:02:10]} 17. Rad1 {[%clk 0:02:04]}  b5 {[%clk 0:02:07]} 18. e5 {[%clk 0:01:43]}  Bb7 {[%clk 0:02:05]} 19. Qg3 {[%clk 0:01:38]}  dxe5 {[%clk 0:01:58]} 20. fxe5 {[%clk 0:01:38]}  b4 {[%clk 0:01:58]} 21. Nce2 {[%clk 0:01:17]}  Ne4 {[%clk 0:01:58]} 22. Qh2 {[%clk 0:01:12]}  Rad8 {[%clk 0:01:46]} 23. Rf1 {[%clk 0:01:10]}  Rd5 {[%clk 0:01:33]} 24. Nf4 {[%clk 0:01:09]}  Rxe5 {[%clk 0:01:16]} 25. Nd3 {[%clk 0:01:08]}  Bd6 {[%clk 0:01:16]} 26. Nxe5 {[%clk 0:01:08]}  Bxe5 {[%clk 0:01:17]} 27. Bf4 {[%clk 0:01:09]}  Bxf4 {[%clk 0:01:05]} 28. Qxf4 {[%clk 0:01:07]}  e5 {[%clk 0:01:06]} 29. Qh2 {[%clk 0:01:08]}  Qc5 {[%clk 0:01:05]} 30. Rf5 {[%clk 0:00:59]}  f6 {[%clk 0:00:36]} 31. Kh1 {[%clk 0:00:59]}  Bc8 {[%clk 0:00:35]} 32. Rf3 {[%clk 0:00:32]}  exd4 {[%clk 0:00:33]} 33. Qf4 {[%clk 0:00:32]}  Bb7 {[%clk 0:00:30]} 34. Rfd3 {[%clk 0:00:26]}  Qxc2 {[%clk 0:00:27]} 35. Kg1 {[%clk 0:00:25]}  Nc3 {[%clk 0:00:25]} 36. Qd2 {[%clk 0:00:06]}  Qxd1+ {[%clk 0:00:25]} 0-1


[Site "https://www.chess.com"]

[Event "Titled Tuesday Blitz May 30 Early 2023"]
[White "Zhigalko, Sergei"]
[Black "Ilamparthi A R"]
[WhiteFideId "13502956"]
[BlackFideId "45015775"]
[WhiteElo "2626"]
[BlackElo "2348"]
[Result "1-0"]
[Round "10"]
[TimeControl "180+2"]
[Date "2023.05.30"]
[WhiteClock "0:00:10"]
[BlackClock "0:00:03"]

1. e4 {[%clk 0:03:00]}  c5 {[%clk 0:02:59]} 2. c3 {[%clk 0:03:01]}  Nf6 {[%clk 0:02:54]} 3. e5 {[%clk 0:03:01]}  Nd5 {[%clk 0:02:55]} 4. Nf3 {[%clk 0:03:02]}  d6 {[%clk 0:02:54]} 5. Bc4 {[%clk 0:03:02]}  Nb6 {[%clk 0:02:53]} 6. Bb3 {[%clk 0:03:02]}  dxe5 {[%clk 0:02:52]} 7. Nxe5 {[%clk 0:03:03]}  e6 {[%clk 0:02:49]} 8. O-O {[%clk 0:02:59]}  Bd6 {[%clk 0:02:48]} 9. d4 {[%clk 0:02:58]}  O-O {[%clk 0:02:47]} 10. Nf3 {[%clk 0:02:50]}  Nc6 {[%clk 0:02:45]} 11. Re1 {[%clk 0:02:50]}  Qc7 {[%clk 0:02:36]} 12. Be3 {[%clk 0:02:45]}  cxd4 {[%clk 0:02:35]} 13. cxd4 {[%clk 0:02:46]}  Nd5 {[%clk 0:02:32]} 14. Nc3 {[%clk 0:02:46]}  Nxe3 {[%clk 0:02:24]} 15. fxe3 {[%clk 0:02:47]}  a6 {[%clk 0:02:23]} 16. e4 {[%clk 0:02:45]}  b5 {[%clk 0:02:21]} 17. e5 {[%clk 0:02:42]}  Be7 {[%clk 0:02:20]} 18. Kh1 {[%clk 0:02:33]}  Na5 {[%clk 0:01:52]} 19. d5 {[%clk 0:02:03]}  exd5 {[%clk 0:01:47]} 20. Bxd5 {[%clk 0:01:52]}  Bb7 {[%clk 0:01:41]} 21. Nd4 {[%clk 0:01:43]}  b4 {[%clk 0:01:14]} 22. Bxb7 {[%clk 0:01:34]}  Qxb7 {[%clk 0:01:15]} 23. Na4 {[%clk 0:01:18]}  Rad8 {[%clk 0:01:12]} 24. Qg4 {[%clk 0:01:18]}  h5 {[%clk 0:01:10]} 25. Qf4 {[%clk 0:01:14]}  Bg5 {[%clk 0:00:51]} 26. Qxg5 {[%clk 0:01:06]}  Rxd4 {[%clk 0:00:51]} 27. h3 {[%clk 0:01:03]}  Qc6 {[%clk 0:00:31]} 28. b3 {[%clk 0:00:48]}  Nb7 {[%clk 0:00:30]} 29. Rac1 {[%clk 0:00:33]}  Qd5 {[%clk 0:00:27]} 30. Qxh5 {[%clk 0:00:17]}  Nd8 {[%clk 0:00:27]} 31. Nb6 {[%clk 0:00:15]}  Qb7 {[%clk 0:00:26]} 32. Nc4 {[%clk 0:00:12]}  Ne6 {[%clk 0:00:26]} 33. Nd6 {[%clk 0:00:09]}  Qd5 {[%clk 0:00:20]} 34. Nf5 {[%clk 0:00:10]}  Re8 {[%clk 0:00:11]} 35. Rc8 {[%clk 0:00:10]}  Rxc8 {[%clk 0:00:03]} 36. Ne7+ {[%clk 0:00:09]}  Kf8 {[%clk 0:00:04]} 37. Nxd5 {[%clk 0:00:10]}  Rxd5 {[%clk 0:00:03]} 38. Qh8+ {[%clk 0:00:10]} 1-0


[Site "https://www.chess.com"]

[Event "Titled Tuesday Blitz May 30 Early 2023"]
[White "Mahdavi, Reza"]
[Black "Novikov, Evgenij"]
[WhiteFideId "12595926"]
[BlackFideId "4125380"]
[WhiteElo "2352"]
[BlackElo "2242"]
[Result "1-0"]
[Round "10"]
[TimeControl "180+2"]
[Date "2023.05.30"]
[WhiteClock "0:01:22"]
[BlackClock "0:00:04"]

1. e4 {[%clk 0:03:00]}  c6 {[%clk 0:02:59]} 2. d4 {[%clk 0:03:00]}  d5 {[%clk 0:03:00]} 3. e5 {[%clk 0:03:00]}  Bf5 {[%clk 0:03:00]} 4. Nf3 {[%clk 0:02:50]}  e6 {[%clk 0:02:59]} 5. Be2 {[%clk 0:02:50]}  Nd7 {[%clk 0:02:58]} 6. O-O {[%clk 0:02:48]}  h6 {[%clk 0:02:58]} 7. a4 {[%clk 0:02:41]}  b6 {[%clk 0:02:56]} 8. Na3 {[%clk 0:02:41]}  Ne7 {[%clk 0:02:56]} 9. c4 {[%clk 0:02:35]}  dxc4 {[%clk 0:02:39]} 10. Nxc4 {[%clk 0:02:33]}  Nd5 {[%clk 0:02:40]} 11. Bd3 {[%clk 0:02:26]}  Bxd3 {[%clk 0:02:37]} 12. Qxd3 {[%clk 0:02:27]}  Bb4 {[%clk 0:02:24]} 13. Bd2 {[%clk 0:02:27]}  O-O {[%clk 0:02:23]} 14. Bxb4 {[%clk 0:02:23]}  Nxb4 {[%clk 0:02:24]} 15. Qe4 {[%clk 0:02:23]}  Nd5 {[%clk 0:02:05]} 16. Nd6 {[%clk 0:02:22]}  Qe7 {[%clk 0:01:42]} 17. Rfc1 {[%clk 0:02:13]}  c5 {[%clk 0:01:36]} 18. a5 {[%clk 0:02:14]}  f6 {[%clk 0:01:19]} 19. Nf5 {[%clk 0:02:07]}  Qf7 {[%clk 0:01:05]} 20. Nd6 {[%clk 0:02:05]}  Qe7 {[%clk 0:01:05]} 21. Nh4 {[%clk 0:02:00]}  Rfb8 {[%clk 0:00:16]} 22. Ng6 {[%clk 0:01:53]}  Qd8 {[%clk 0:00:16]} 23. a6 {[%clk 0:01:53]}  Nf8 {[%clk 0:00:11]} 24. Nf4 {[%clk 0:01:40]}  f5 {[%clk 0:00:10]} 25. Qf3 {[%clk 0:01:38]}  Nxf4 {[%clk 0:00:07]} 26. Qxf4 {[%clk 0:01:39]}  Nd7 {[%clk 0:00:06]} 27. Rc2 {[%clk 0:01:35]}  Qg5 {[%clk 0:00:05]} 28. Qf3 {[%clk 0:01:31]}  Kf8 {[%clk 0:00:03]} 29. Qc6 {[%clk 0:01:30]}  Ke7 {[%clk 0:00:03]} 30. Nb5 {[%clk 0:01:26]}  Qf4 {[%clk 0:00:03]} 31. Qd6+ {[%clk 0:01:26]}  Kd8 {[%clk 0:00:03]} 32. Nc7 {[%clk 0:01:25]}  Qe4 {[%clk 0:00:03]} 33. Nxe6+ {[%clk 0:01:25]}  Ke8 {[%clk 0:00:03]} 34. Nc7+ {[%clk 0:01:23]}  Kd8 {[%clk 0:00:03]} 35. e6 {[%clk 0:01:21]}  Qxd4 {[%clk 0:00:03]} 36. e7+ {[%clk 0:01:21]}  Kc8 {[%clk 0:00:04]} 37. e8=Q# {[%clk 0:01:22]} 1-0


[Site "https://www.chess.com"]

[Event "Titled Tuesday Blitz May 30 Early 2023"]
[White "Atoufi, Pedram"]
[Black "Sethuraman, S.P."]
[WhiteFideId "12501654"]
[BlackFideId "5021596"]
[WhiteElo "2228"]
[BlackElo "2543"]
[Result "1-0"]
[Round "10"]
[TimeControl "180+2"]
[Date "2023.05.30"]
[WhiteClock "0:00:10"]
[BlackClock "0:00:01"]

1. Nc3 {[%clk 0:03:00]}  d5 {[%clk 0:02:56]} 2. d4 {[%clk 0:02:56]}  Nf6 {[%clk 0:02:56]} 3. Nf3 {[%clk 0:02:56]}  e6 {[%clk 0:02:53]} 4. e3 {[%clk 0:02:55]}  a6 {[%clk 0:02:50]} 5. Bd3 {[%clk 0:02:50]}  c5 {[%clk 0:02:50]} 6. O-O {[%clk 0:02:46]}  c4 {[%clk 0:02:50]} 7. Be2 {[%clk 0:02:46]}  b5 {[%clk 0:02:50]} 8. a3 {[%clk 0:02:44]}  Bb7 {[%clk 0:02:49]} 9. Bd2 {[%clk 0:02:43]}  Nbd7 {[%clk 0:02:49]} 10. Na2 {[%clk 0:02:38]}  Bd6 {[%clk 0:02:46]} 11. Bb4 {[%clk 0:02:34]}  Bc7 {[%clk 0:02:45]} 12. Bd2 {[%clk 0:02:31]}  O-O {[%clk 0:02:44]} 13. h3 {[%clk 0:02:30]}  Ne4 {[%clk 0:02:44]} 14. Nc3 {[%clk 0:02:27]}  f5 {[%clk 0:02:44]} 15. Rb1 {[%clk 0:02:11]}  Qe7 {[%clk 0:02:40]} 16. Nxe4 {[%clk 0:02:06]}  fxe4 {[%clk 0:02:38]} 17. Bb4 {[%clk 0:02:02]}  Bd6 {[%clk 0:02:13]} 18. Bxd6 {[%clk 0:01:56]}  Qxd6 {[%clk 0:02:14]} 19. Nd2 {[%clk 0:01:56]}  e5 {[%clk 0:02:12]} 20. Bg4 {[%clk 0:01:53]}  Nf6 {[%clk 0:02:08]} 21. dxe5 {[%clk 0:01:44]}  Qxe5 {[%clk 0:02:07]} 22. Re1 {[%clk 0:01:42]}  d4 {[%clk 0:01:56]} 23. exd4 {[%clk 0:01:38]}  Qxd4 {[%clk 0:01:57]} 24. Nxe4 {[%clk 0:01:35]}  Qb6 {[%clk 0:01:43]} 25. Qd6 {[%clk 0:01:22]}  Bc6 {[%clk 0:01:24]} 26. Qc5 {[%clk 0:01:10]}  Qxc5 {[%clk 0:01:17]} 27. Be6+ {[%clk 0:01:07]}  Kh8 {[%clk 0:01:16]} 28. Nxc5 {[%clk 0:01:07]}  a5 {[%clk 0:01:10]} 29. a4 {[%clk 0:01:02]}  bxa4 {[%clk 0:01:08]} 30. Bxc4 {[%clk 0:01:00]}  Rfc8 {[%clk 0:01:08]} 31. Be6 {[%clk 0:00:57]}  Rc7 {[%clk 0:01:06]} 32. Re5 {[%clk 0:00:52]}  h6 {[%clk 0:01:01]} 33. Rd1 {[%clk 0:00:43]}  Re8 {[%clk 0:00:59]} 34. f4 {[%clk 0:00:35]}  Ba8 {[%clk 0:00:40]} 35. c4 {[%clk 0:00:23]}  Bc6 {[%clk 0:00:34]} 36. Bf5 {[%clk 0:00:23]}  Rce7 {[%clk 0:00:26]} 37. Rxe7 {[%clk 0:00:22]}  Rxe7 {[%clk 0:00:26]} 38. Rd8+ {[%clk 0:00:20]}  Ne8 {[%clk 0:00:24]} 39. Kf2 {[%clk 0:00:19]}  Kg8 {[%clk 0:00:19]} 40. Bg6 {[%clk 0:00:18]}  Kf8 {[%clk 0:00:17]} 41. Rc8 {[%clk 0:00:17]}  a3 {[%clk 0:00:14]} 42. bxa3 {[%clk 0:00:17]}  Rc7 {[%clk 0:00:03]} 43. Ne6+ {[%clk 0:00:13]}  Ke7 {[%clk 0:00:03]} 44. Nxc7 {[%clk 0:00:13]}  Nd6 {[%clk 0:00:01]} 45. Rg8 {[%clk 0:00:10]} 1-0


[Site "https://www.chess.com"]

[Event "Titled Tuesday Blitz May 30 Early 2023"]
[White "Matinian, Nikita"]
[Black "Narayanan.S.L"]
[WhiteFideId "24129100"]
[BlackFideId "5058422"]
[WhiteElo "2422"]
[BlackElo "2563"]
[Result "0-1"]
[Round "10"]
[TimeControl "180+2"]
[Date "2023.05.30"]
[WhiteClock "0:00:10"]
[BlackClock "0:02:02"]

1. e4 {[%clk 0:03:00]}  c5 {[%clk 0:02:59]} 2. Nf3 {[%clk 0:02:59]}  e6 {[%clk 0:02:59]} 3. d4 {[%clk 0:02:59]}  cxd4 {[%clk 0:03:00]} 4. Nxd4 {[%clk 0:03:00]}  a6 {[%clk 0:03:00]} 5. Nc3 {[%clk 0:03:00]}  Qc7 {[%clk 0:02:59]} 6. Be2 {[%clk 0:02:58]}  b6 {[%clk 0:02:59]} 7. f4 {[%clk 0:02:52]}  Bb7 {[%clk 0:02:59]} 8. O-O {[%clk 0:02:49]}  Bb4 {[%clk 0:02:57]} 9. e5 {[%clk 0:02:28]}  Ne7 {[%clk 0:02:54]} 10. Kh1 {[%clk 0:02:10]}  Nbc6 {[%clk 0:02:46]} 11. a3 {[%clk 0:02:08]}  Nxd4 {[%clk 0:02:41]} 12. Qxd4 {[%clk 0:01:59]}  Bxc3 {[%clk 0:02:38]} 13. bxc3 {[%clk 0:01:46]}  Nf5 {[%clk 0:02:36]} 14. Qd3 {[%clk 0:01:44]}  h5 {[%clk 0:02:37]} 15. Be3 {[%clk 0:01:13]}  h4 {[%clk 0:02:33]} 16. Kg1 {[%clk 0:01:13]}  h3 {[%clk 0:02:32]} 17. g3 {[%clk 0:01:12]}  Rc8 {[%clk 0:02:32]} 18. c4 {[%clk 0:01:10]}  O-O {[%clk 0:02:22]} 19. Rab1 {[%clk 0:01:08]}  b5 {[%clk 0:02:21]} 20. cxb5 {[%clk 0:01:07]}  axb5 {[%clk 0:02:22]} 21. Bg4 {[%clk 0:00:44]}  Nxe3 {[%clk 0:02:20]} 22. Qxe3 {[%clk 0:00:42]}  Qxc2 {[%clk 0:02:21]} 23. Bxh3 {[%clk 0:00:42]}  Qc6 {[%clk 0:02:17]} 24. Kf2 {[%clk 0:00:38]}  Qc2+ {[%clk 0:02:11]} 25. Qe2 {[%clk 0:00:31]}  Qh7 {[%clk 0:02:04]} 26. Qg4 {[%clk 0:00:16]}  Rc2+ {[%clk 0:02:01]} 27. Kg1 {[%clk 0:00:10]}  Qe4 {[%clk 0:02:02]} 0-1


[Site "https://www.chess.com"]

[Event "Titled Tuesday Blitz May 30 Early 2023"]
[White "Martinez Ramirez, Lennis"]
[Black "Galchenko, Matvey"]
[WhiteFideId "3509079"]
[BlackFideId "24175480"]
[WhiteElo "2410"]
[BlackElo "2423"]
[Result "1/2-1/2"]
[Round "10"]
[TimeControl "180+2"]
[Date "2023.05.30"]
[WhiteClock "0:00:16"]
[BlackClock "0:00:04"]

1. Nf3 {[%clk 0:03:00]}  c5 {[%clk 0:02:58]} 2. e4 {[%clk 0:02:59]}  g6 {[%clk 0:02:58]} 3. d4 {[%clk 0:02:58]}  cxd4 {[%clk 0:02:59]} 4. Qxd4 {[%clk 0:02:59]}  Nf6 {[%clk 0:02:57]} 5. e5 {[%clk 0:02:59]}  Nc6 {[%clk 0:02:58]} 6. Qa4 {[%clk 0:03:00]}  Nd5 {[%clk 0:02:58]} 7. Qb3 {[%clk 0:03:00]}  Nc7 {[%clk 0:02:43]} 8. Bf4 {[%clk 0:02:56]}  Ne6 {[%clk 0:02:41]} 9. Bg3 {[%clk 0:02:55]}  Bg7 {[%clk 0:02:40]} 10. Nc3 {[%clk 0:02:55]}  Qa5 {[%clk 0:02:21]} 11. O-O-O {[%clk 0:02:53]}  a6 {[%clk 0:02:15]} 12. h4 {[%clk 0:02:49]}  h6 {[%clk 0:02:10]} 13. Bc4 {[%clk 0:02:32]}  b5 {[%clk 0:01:36]} 14. Bxe6 {[%clk 0:02:26]}  dxe6 {[%clk 0:01:37]} 15. h5 {[%clk 0:02:26]}  g5 {[%clk 0:01:35]} 16. Rhe1 {[%clk 0:01:49]}  Bb7 {[%clk 0:01:22]} 17. Nh2 {[%clk 0:01:44]}  Rc8 {[%clk 0:01:11]} 18. Ng4 {[%clk 0:01:44]}  Qb4 {[%clk 0:01:10]} 19. Qxb4 {[%clk 0:01:39]}  Nxb4 {[%clk 0:01:11]} 20. f3 {[%clk 0:01:39]}  Nd5 {[%clk 0:01:10]} 21. Nxd5 {[%clk 0:01:37]}  Bxd5 {[%clk 0:01:10]} 22. b3 {[%clk 0:01:35]}  O-O {[%clk 0:00:59]} 23. Ne3 {[%clk 0:01:34]}  Bc6 {[%clk 0:00:58]} 24. Rd3 {[%clk 0:01:30]}  f6 {[%clk 0:00:49]} 25. Rd2 {[%clk 0:00:34]}  Rfd8 {[%clk 0:00:40]} 26. f4 {[%clk 0:00:30]}  Rxd2 {[%clk 0:00:36]} 27. Kxd2 {[%clk 0:00:30]}  Be8 {[%clk 0:00:36]} 28. Rh1 {[%clk 0:00:29]}  Rd8+ {[%clk 0:00:27]} 29. Ke2 {[%clk 0:00:29]}  b4 {[%clk 0:00:24]} 30. fxg5 {[%clk 0:00:28]}  hxg5 {[%clk 0:00:17]} 31. h6 {[%clk 0:00:27]}  Bh8 {[%clk 0:00:17]} 32. Nc4 {[%clk 0:00:27]}  Bb5 {[%clk 0:00:14]} 33. Rd1 {[%clk 0:00:25]}  Rxd1 {[%clk 0:00:13]} 34. Kxd1 {[%clk 0:00:26]}  Kh7 {[%clk 0:00:08]} 35. Be1 {[%clk 0:00:27]}  f5 {[%clk 0:00:06]} 36. Bxb4 {[%clk 0:00:25]}  Bxc4 {[%clk 0:00:06]} 37. bxc4 {[%clk 0:00:25]}  Bxe5 {[%clk 0:00:07]} 38. Bxe7 {[%clk 0:00:26]}  Kxh6 {[%clk 0:00:08]} 39. c5 {[%clk 0:00:26]}  Kg6 {[%clk 0:00:07]} 40. Bd6 {[%clk 0:00:26]}  Bxd6 {[%clk 0:00:07]} 41. cxd6 {[%clk 0:00:27]}  Kf6 {[%clk 0:00:06]} 42. c4 {[%clk 0:00:28]}  e5 {[%clk 0:00:07]} 43. c5 {[%clk 0:00:28]}  Ke6 {[%clk 0:00:07]} 44. a4 {[%clk 0:00:24]}  e4 {[%clk 0:00:06]} 45. Ke2 {[%clk 0:00:21]}  f4 {[%clk 0:00:06]} 46. a5 {[%clk 0:00:21]}  e3 {[%clk 0:00:07]} 47. Kd3 {[%clk 0:00:16]}  Kd7 {[%clk 0:00:07]} 48. Ke2 {[%clk 0:00:16]}  Kc6 {[%clk 0:00:07]} 49. Kd3 {[%clk 0:00:16]}  Kd7 {[%clk 0:00:07]} 50. Ke2 {[%clk 0:00:16]}  Kc6 {[%clk 0:00:07]} 51. Kf3 {[%clk 0:00:16]}  Kd7 {[%clk 0:00:04]} 52. Ke2 {[%clk 0:00:16]} 1/2-1/2


[Site "https://www.chess.com"]

[Event "Titled Tuesday Blitz May 30 Early 2023"]
[White "Veiga, Jose Francisco R P Neves"]
[Black "Rustemov, Alexander"]
[WhiteFideId "1930087"]
[BlackFideId "4119002"]
[WhiteElo "2320"]
[BlackElo "2817"]
[Result "0-1"]
[Round "10"]
[TimeControl "180+2"]
[Date "2023.05.30"]
[WhiteClock "0:00:04"]
[BlackClock "0:00:03"]

1. d4 {[%clk 0:03:00]}  g6 {[%clk 0:02:59]} 2. Nf3 {[%clk 0:03:01]}  Bg7 {[%clk 0:02:59]} 3. e4 {[%clk 0:03:00]}  d6 {[%clk 0:02:58]} 4. Nc3 {[%clk 0:03:00]}  Nf6 {[%clk 0:02:59]} 5. h3 {[%clk 0:03:00]}  O-O {[%clk 0:02:59]} 6. Be3 {[%clk 0:03:00]}  a6 {[%clk 0:02:59]} 7. a4 {[%clk 0:03:00]}  b6 {[%clk 0:02:59]} 8. Bc4 {[%clk 0:02:53]}  e6 {[%clk 0:02:57]} 9. Qd3 {[%clk 0:02:04]}  Bb7 {[%clk 0:02:54]} 10. d5 {[%clk 0:02:04]}  exd5 {[%clk 0:02:47]} 11. exd5 {[%clk 0:02:04]}  Nbd7 {[%clk 0:02:42]} 12. O-O {[%clk 0:02:03]}  Re8 {[%clk 0:02:38]} 13. Rfe1 {[%clk 0:02:00]}  Nc5 {[%clk 0:02:36]} 14. Bxc5 {[%clk 0:01:39]}  dxc5 {[%clk 0:02:32]} 15. Rxe8+ {[%clk 0:01:34]}  Nxe8 {[%clk 0:02:31]} 16. Re1 {[%clk 0:01:32]}  Nd6 {[%clk 0:02:31]} 17. b3 {[%clk 0:01:21]}  Qf6 {[%clk 0:02:29]} 18. Ne4 {[%clk 0:01:20]}  Nxe4 {[%clk 0:02:18]} 19. Rxe4 {[%clk 0:01:16]}  Rd8 {[%clk 0:02:08]} 20. Qe2 {[%clk 0:01:14]}  Bxd5 {[%clk 0:02:00]} 21. Re8+ {[%clk 0:01:11]}  Bf8 {[%clk 0:01:59]} 22. Rxd8 {[%clk 0:01:11]}  Qxd8 {[%clk 0:02:00]} 23. Qd3 {[%clk 0:01:03]}  c6 {[%clk 0:01:55]} 24. Bxa6 {[%clk 0:01:03]}  Qf6 {[%clk 0:01:51]} 25. Bc4 {[%clk 0:01:00]}  Qa1+ {[%clk 0:01:43]} 26. Kh2 {[%clk 0:00:55]}  Bd6+ {[%clk 0:01:25]} 27. g3 {[%clk 0:00:55]}  Qc1 {[%clk 0:01:06]} 28. Bxd5 {[%clk 0:00:39]}  cxd5 {[%clk 0:01:07]} 29. Qxd5 {[%clk 0:00:37]}  Qxc2 {[%clk 0:01:07]} 30. Kg2 {[%clk 0:00:33]}  Be7 {[%clk 0:00:54]} 31. Qe5 {[%clk 0:00:26]}  Bf8 {[%clk 0:00:50]} 32. Qd5 {[%clk 0:00:21]}  h6 {[%clk 0:00:49]} 33. h4 {[%clk 0:00:19]}  Bg7 {[%clk 0:00:39]} 34. h5 {[%clk 0:00:18]}  gxh5 {[%clk 0:00:31]} 35. Qa8+ {[%clk 0:00:04]}  Kh7 {[%clk 0:00:29]} 36. Qd5 {[%clk 0:00:05]}  Qg6 {[%clk 0:00:26]} 37. Nh4 {[%clk 0:00:04]}  Qe6 {[%clk 0:00:25]} 38. Qxh5 {[%clk 0:00:03]}  Qxb3 {[%clk 0:00:23]} 39. Qf5+ {[%clk 0:00:03]}  Kg8 {[%clk 0:00:22]} 40. Qc8+ {[%clk 0:00:04]}  Bf8 {[%clk 0:00:22]} 41. Qg4+ {[%clk 0:00:02]}  Kh8 {[%clk 0:00:22]} 42. Qf5 {[%clk 0:00:02]}  Qe6 {[%clk 0:00:20]} 43. Qf3 {[%clk 0:00:02]}  c4 {[%clk 0:00:19]} 44. Nf5 {[%clk 0:00:02]}  Qf6 {[%clk 0:00:16]} 45. Ne3 {[%clk 0:00:02]}  Qxf3+ {[%clk 0:00:13]} 46. Kxf3 {[%clk 0:00:03]}  c3 {[%clk 0:00:13]} 47. Ke2 {[%clk 0:00:04]}  Bc5 {[%clk 0:00:11]} 48. Kd3 {[%clk 0:00:04]}  Kg7 {[%clk 0:00:05]} 49. Kxc3 {[%clk 0:00:04]}  Kg6 {[%clk 0:00:05]} 50. Kd3 {[%clk 0:00:03]}  Kg5 {[%clk 0:00:05]} 51. f4+ {[%clk 0:00:02]}  Kg6 {[%clk 0:00:04]} 52. Nc4 {[%clk 0:00:01]}  h5 {[%clk 0:00:04]} 53. Ne5+ {[%clk 0:00:02]}  Kf5 {[%clk 0:00:03]} 54. Kc4 {[%clk 0:00:03]}  Bf2 {[%clk 0:00:03]} 55. Nd7 {[%clk 0:00:03]}  Bxg3 {[%clk 0:00:03]} 56. Nxb6 {[%clk 0:00:03]}  Bf2 {[%clk 0:00:03]} 57. Nd5 {[%clk 0:00:03]}  h4 {[%clk 0:00:03]} 58. Kb5 {[%clk 0:00:03]}  h3 {[%clk 0:00:04]} 59. Nb6 {[%clk 0:00:03]}  h2 {[%clk 0:00:04]} 60. a5 {[%clk 0:00:04]}  h1=Q {[%clk 0:00:03]} 0-1


[Site "https://www.chess.com"]

[Event "Titled Tuesday Blitz May 30 Early 2023"]
[White "Papasimakopoulos, Alexandros"]
[Black "NikaVolkov"]
[WhiteFideId "4244125"]
[WhiteElo "2359"]
[BlackElo "2657"]
[Result "1-0"]
[Round "10"]
[TimeControl "180+2"]
[Date "2023.05.30"]
[WhiteClock "0:00:15"]
[BlackClock "0:00:00"]

1. d4 {[%clk 0:03:00]}  e6 {[%clk 0:03:00]} 2. c4 {[%clk 0:03:00]}  d5 {[%clk 0:03:00]} 3. Nc3 {[%clk 0:02:59]}  Nf6 {[%clk 0:03:01]} 4. cxd5 {[%clk 0:03:00]}  exd5 {[%clk 0:03:02]} 5. Bg5 {[%clk 0:03:00]}  Be7 {[%clk 0:03:02]} 6. e3 {[%clk 0:03:00]}  O-O {[%clk 0:03:03]} 7. Nf3 {[%clk 0:03:00]}  Be6 {[%clk 0:03:04]} 8. Be2 {[%clk 0:02:57]}  c5 {[%clk 0:03:04]} 9. O-O {[%clk 0:02:56]}  Nc6 {[%clk 0:03:05]} 10. dxc5 {[%clk 0:02:56]}  Bxc5 {[%clk 0:03:06]} 11. Rc1 {[%clk 0:02:56]}  Be7 {[%clk 0:03:06]} 12. Nb5 {[%clk 0:02:55]}  Qb6 {[%clk 0:03:06]} 13. Nbd4 {[%clk 0:02:49]}  Rac8 {[%clk 0:03:03]} 14. b3 {[%clk 0:02:46]}  h6 {[%clk 0:02:59]} 15. Bh4 {[%clk 0:02:45]}  Ba3 {[%clk 0:02:49]} 16. Rc2 {[%clk 0:02:27]}  Ne4 {[%clk 0:02:47]} 17. Nxc6 {[%clk 0:02:21]}  bxc6 {[%clk 0:02:44]} 18. Nd4 {[%clk 0:02:19]}  Bd7 {[%clk 0:02:45]} 19. Bd3 {[%clk 0:02:18]}  f5 {[%clk 0:02:41]} 20. Qh5 {[%clk 0:02:12]}  Kh7 {[%clk 0:02:26]} 21. Rd1 {[%clk 0:02:00]}  c5 {[%clk 0:02:22]} 22. Ne2 {[%clk 0:01:48]}  Be8 {[%clk 0:02:08]} 23. Qf3 {[%clk 0:01:48]}  g5 {[%clk 0:02:08]} 24. Bg3 {[%clk 0:01:47]}  c4 {[%clk 0:01:42]} 25. Be5 {[%clk 0:00:43]}  cxd3 {[%clk 0:00:46]} 26. Rxc8 {[%clk 0:00:42]}  g4 {[%clk 0:00:45]} 27. Qf4 {[%clk 0:00:34]}  dxe2 {[%clk 0:00:45]} 28. Re1 {[%clk 0:00:35]}  Be7 {[%clk 0:00:23]} 29. Rc7 {[%clk 0:00:32]}  Qe6 {[%clk 0:00:14]} 30. Rxe2 {[%clk 0:00:30]}  Rf7 {[%clk 0:00:14]} 31. Bb2 {[%clk 0:00:28]}  Bg5 {[%clk 0:00:13]} 32. Rxf7+ {[%clk 0:00:26]}  Qxf7 {[%clk 0:00:13]} 33. Qb8 {[%clk 0:00:24]}  Bf6 {[%clk 0:00:13]} 34. Be5 {[%clk 0:00:19]}  Kg6 {[%clk 0:00:12]} 35. f3 {[%clk 0:00:19]}  gxf3 {[%clk 0:00:11]} 36. gxf3 {[%clk 0:00:20]}  Ng5 {[%clk 0:00:12]} 37. Rg2 {[%clk 0:00:19]}  Bxe5 {[%clk 0:00:04]} 38. Qxe5 {[%clk 0:00:19]}  Kh7 {[%clk 0:00:05]} 39. Kf2 {[%clk 0:00:18]}  Qe6 {[%clk 0:00:05]} 40. Qxe6 {[%clk 0:00:18]}  Nxe6 {[%clk 0:00:06]} 41. f4 {[%clk 0:00:18]}  Nc5 {[%clk 0:00:06]} 42. Ke2 {[%clk 0:00:16]}  Bb5+ {[%clk 0:00:05]} 43. Kd2 {[%clk 0:00:16]}  Ne4+ {[%clk 0:00:06]} 44. Kc2 {[%clk 0:00:17]}  Bf1 {[%clk 0:00:06]} 45. Rg1 {[%clk 0:00:17]}  Bb5 {[%clk 0:00:07]} 46. a4 {[%clk 0:00:17]}  Ba6 {[%clk 0:00:05]} 47. b4 {[%clk 0:00:17]}  h5 {[%clk 0:00:06]} 48. b5 {[%clk 0:00:17]}  Bc8 {[%clk 0:00:05]} 49. Kd3 {[%clk 0:00:17]}  Nc5+ {[%clk 0:00:05]} 50. Kd4 {[%clk 0:00:18]}  Nxa4 {[%clk 0:00:06]} 51. Kxd5 {[%clk 0:00:18]}  Bd7 {[%clk 0:00:05]} 52. Kc4 {[%clk 0:00:16]}  Nb6+ {[%clk 0:00:04]} 53. Kc5 {[%clk 0:00:16]}  Na4+ {[%clk 0:00:05]} 54. Kb4 {[%clk 0:00:16]}  Nb6 {[%clk 0:00:06]} 55. Ra1 {[%clk 0:00:16]}  Kg6 {[%clk 0:00:05]} 56. Rxa7 {[%clk 0:00:15]}  Be8 {[%clk 0:00:00]} 57. Ra6 {[%clk 0:00:15]} 1-0


[Site "https://www.chess.com"]